bitfinex/quotes_BTCUSD_20250830
["timestamp","ask_amount","ask_price","bid_price","bid_amount"]
[1756573695010,1.60747163,109100.0,109090.0,0.22801]
[1756573695226,1.60747163,109100.0,109090.0,0.23006]
[1756573695571,1.60747163,109100.0,109090.0,0.23106]
[1756573696462,1.60747163,109100.0,109090.0,0.23206]
[1756573698677,1.60744353,109100.0,109090.0,0.23206]
[1756573699507,1.60744326,109100.0,109090.0,0.23206]
[1756573700222,1.60744326,109100.0,109090.0,0.23001]
[1756573701748,1.60744326,109100.0,109090.0,0.2321]
[1756573703528,1.60744326,109100.0,109090.0,0.23186]
[1756573705221,1.60744326,109100.0,109090.0,0.23182]
[1756573707467,1.60744326,109100.0,109090.0,0.07754]
[1756573707682,1.60744326,109100.0,109090.0,0.23178]
[1756573707895,1.60621326,109100.0,109090.0,0.23178]
[1756573708494,1.60744326,109100.0,109090.0,0.23178]
[1756573708875,1.60744326,109100.0,109090.0,0.002]
[1756573709091,1.60744326,109100.0,109090.0,0.15624]
[1756573709308,1.60745324,109100.0,109090.0,0.15624]
[1756573709520,1.60745726,109100.0,109090.0,0.15624]
[1756573710159,1.60745726,109100.0,109090.0,0.002]
[1756573710372,4.18738526,109100.0,109090.0,0.002]
[1756573710636,4.18738526,109100.0,109090.0,0.15636]
[1756573711521,4.18738526,109100.0,109090.0,0.002]
[1756573711786,4.75766402,109100.0,109090.0,0.002]
[1756573712210,4.41376171,109100.0,109090.0,0.002]
[1756573712624,4.42292761,109100.0,109070.0,0.098759]
[1756573712832,1.21115628,109080.0,109070.0,0.098759]
[1756573713075,1.23479101,109080.0,109070.0,0.098759]
[1756573713339,1.22957412,109080.0,109070.0,0.100849]
[1756573713552,1.60749383,109080.0,109070.0,0.255129]
[1756573713989,1.60749383,109080.0,109070.0,0.100849]
[1756573714208,1.60749383,109080.0,109070.0,0.253039]
[1756573714679,1.60749383,109080.0,109070.0,0.255039]
[1756573715794,1.60749383,109080.0,109070.0,0.257039]
[1756573716008,1.60749383,109080.0,109070.0,0.259129]
[1756573718505,1.60749383,109080.0,109070.0,0.253899]
[1756573718924,1.60749383,109080.0,109070.0,0.099619]
[1756573719141,1.60749383,109080.0,109070.0,0.253939]
[1756573719576,4.18742183,109080.0,109070.0,0.253939]
[1756573719825,4.1874174,109080.0,109070.0,0.253939]
[1756573720642,4.187417,109080.0,109070.0,0.253939]
[1756573721057,4.187417,109080.0,109070.0,0.257079]
[1756573723318,4.187417,109080.0,109070.0,0.183379]
[1756573723540,4.73424294,109080.0,109070.0,0.029099]
[1756573724167,4.39034063,109080.0,109070.0,0.027099]
[1756573724420,4.39034063,109080.0,109070.0,0.025099]
[1756573724645,4.23606063,109080.0,109070.0,0.026099]
[1756573724878,4.39038063,109080.0,109070.0,0.027099]
[1756573725109,4.39038063,109080.0,109070.0,0.026099]
[1756573725333,4.23606063,109080.0,109070.0,0.026099]
[1756573725550,4.36152939,109080.0,109070.0,0.027099]
[1756573726629,4.37588142,109080.0,109070.0,0.027099]
[1756573728870,4.22156142,109080.0,109070.0,0.027099]
[1756573729068,4.37584142,109080.0,109070.0,0.027099]
[1756573729287,4.37580142,109080.0,109070.0,0.027099]
[1756573730408,4.22152256,109080.0,109070.0,0.027099]
[1756573730664,4.37576256,109080.0,109070.0,0.027099]
[1756573730961,4.37453256,109080.0,109070.0,0.032319]
[1756573731203,4.37453085,109080.0,109070.0,0.032319]
[1756573731435,4.22152085,109080.0,109070.0,0.032319]
[1756573731650,3.87638854,109080.0,109070.0,0.032319]
[1756573731865,4.35473846,109080.0,109070.0,0.032319]
[1756573732077,4.20049846,109080.0,109070.0,0.032319]
[1756573732700,4.18614643,109080.0,109070.0,0.032319]
[1756573734213,3.84224412,109080.0,109070.0,0.032319]
[1756573735912,4.18614643,109080.0,109070.0,0.032319]
[1756573736311,4.18614643,109080.0,109070.0,0.186559]
[1756573736521,4.18614643,109080.0,109070.0,0.032319]
[1756573738969,4.18614643,109080.0,109070.0,0.186519]
[1756573739170,4.18737643,109080.0,109070.0,0.186519]
[1756573739508,3.84360094,109080.0,109070.0,0.186519]
[1756573740418,3.84360094,109080.0,109070.0,0.032319]
[1756573740569,3.84360094,109080.0,109070.0,0.027099]
[1756573740570,3.9599785,109080.0,109070.0,0.027099]
[1756573740783,3.95998688,109080.0,109070.0,0.027099]
[1756573741014,3.93192958,109080.0,109070.0,0.027099]
[1756573741240,3.86342855,109080.0,109070.0,0.027099]
[1756573742559,4.01762855,109080.0,109070.0,0.027099]
[1756573743417,4.01764206,109080.0,109070.0,0.027099]
[1756573746104,4.01765174,109080.0,109070.0,0.027099]
[1756573746328,4.04573298,109080.0,109070.0,0.027099]
[1756573746525,4.01761174,109080.0,109070.0,0.027099]
[1756573746952,4.01761645,109080.0,109070.0,0.027099]
[1756573749885,4.01753645,109080.0,109070.0,0.027099]
[1756573750543,4.01754551,109080.0,109070.0,0.027099]
[1756573750996,4.01754599,109080.0,109070.0,0.027099]
[1756573751238,4.06907276,109080.0,109070.0,0.027099]
[1756573751473,4.097154,109080.0,109070.0,0.027099]
[1756573751932,4.46587594,109080.0,109070.0,0.027099]
[1756573753055,4.46587594,109080.0,109070.0,0.025099]
[1756573754097,4.52483615,109080.0,109070.0,0.025099]
[1756573754792,4.37075615,109080.0,109070.0,0.025099]
[1756573754990,4.52487615,109080.0,109070.0,0.025099]
[1756573756294,4.49181864,109080.0,109070.0,0.025099]
[1756573756511,4.52487615,109080.0,109070.0,0.025099]
[1756573757407,4.18091043,109080.0,109070.0,0.025099]
[1756573758040,4.19526303,109080.0,109070.0,0.025099]
[1756573759687,4.04114303,109080.0,109070.0,0.025099]
[1756573759864,4.19518303,109080.0,109070.0,0.025099]
[1756573760321,4.16212552,109080.0,109070.0,0.025099]
[1756573760810,4.11136914,109080.0,109070.0,0.025099]
[1756573761011,4.10490725,109080.0,109070.0,0.025099]
[1756573761147,4.11135284,109080.0,109070.0,0.025099]
[1756573761364,4.45549106,109080.0,109070.0,0.025099]
[1756573761567,4.45471939,109080.0,109070.0,0.025099]
[1756573762203,4.42663815,109080.0,109070.0,0.025099]
[1756573763207,4.51493447,109080.0,109070.0,0.025099]
[1756573763901,4.3795732,109080.0,109070.0,0.025099]
[1756573764252,4.35367132,109080.0,109070.0,0.025099]
[1756573766684,4.35367001,109080.0,109070.0,0.025099]
[1756573771543,4.37957189,109080.0,109070.0,0.025099]
[1756573771761,4.37957624,109080.0,109070.0,0.025099]
[1756573772370,4.31383256,109080.0,109070.0,0.025099]
[1756573772716,4.46767256,109080.0,109070.0,0.025099]
[1756573773032,4.37937624,109080.0,109070.0,0.025099]
[1756573774017,4.40413246,109080.0,109070.0,0.025099]
[1756573774506,4.40413711,109080.0,109070.0,0.025099]
[1756573775471,4.40413959,109080.0,109070.0,0.025099]
[1756573776341,4.49235591,109080.0,109070.0,0.025099]
[1756573777090,4.49235591,109080.0,109070.0,0.030219]
[1756573777091,4.05880637,109080.0,109070.0,0.030219]
[1756573777336,4.03290449,109080.0,109070.0,0.030219]
[1756573777565,3.99379567,109080.0,109070.0,0.030219]
[1756573779281,4.01855189,109080.0,109070.0,0.030219]
[1756573780646,4.03290377,109080.0,109070.0,0.030219]
[1756573782361,4.03292722,109080.0,109070.0,0.030219]
[1756573783063,4.12122354,109080.0,109070.0,0.030219]
[1756573784308,4.03292722,109080.0,109070.0,0.030219]
[1756573785511,4.40626168,109080.0,109070.0,0.025099]
[1756573785752,4.43293356,109080.0,109070.0,0.025099]
[1756573785958,0.52338529,109060.0,109050.0,0.00302]
[1756573786184,4.3325337,109060.0,109050.0,0.00302]
[1756573786413,4.13201992,109060.0,109050.0,0.00302]
[1756573786615,4.38774682,109060.0,109050.0,0.00302]
[1756573786858,4.38774682,109060.0,109050.0,0.00512]
[1756573787116,4.41532882,109060.0,109050.0,0.00302]
[1756573787345,4.07147182,109060.0,109050.0,0.00349608]
[1756573787546,4.07147182,109060.0,109050.0,0.00449608]
[1756573787981,4.07147182,109060.0,109050.0,0.00549608]
[1756573789025,4.07147182,109060.0,109050.0,0.00449608]
[1756573789232,4.15976814,109060.0,109050.0,0.00349608]
[1756573789439,4.17412278,109060.0,109050.0,0.00349608]
[1756573790713,4.08582646,109060.0,109050.0,0.00349608]
[1756573791316,4.08582646,109060.0,109050.0,0.00550608]
[1756573792037,4.08583772,109060.0,109050.0,0.00550608]
[1756573792851,4.07937207,109060.0,109050.0,0.00550608]
[1756573793022,4.08582212,109060.0,109050.0,0.00550608]
[1756573794101,4.07146748,109060.0,109050.0,0.00550608]
[1756573794279,3.72736115,109060.0,109050.0,0.00550608]
[1756573796317,3.81565747,109060.0,109050.0,0.00550608]
[1756573796529,4.1597638,109060.0,109050.0,0.00550608]
[1756573797300,4.17411842,109060.0,109050.0,0.00550608]
[1756573799301,4.17407842,109060.0,109050.0,0.00550608]
[1756573799524,3.67633209,109060.0,109050.0,0.00550608]
[1756573799739,3.82997209,109060.0,109050.0,0.00550608]
[1756573799959,3.74167577,109060.0,109050.0,0.00550608]
[1756573800355,3.58803577,109060.0,109050.0,0.00550608]
[1756573800531,3.71236453,109060.0,109050.0,0.00550608]
[1756573801335,3.3682582,109060.0,109050.0,0.00550608]
[1756573801580,3.71236453,109060.0,109050.0,0.00550608]
[1756573802032,3.68646265,109060.0,109050.0,0.00550608]
[1756573802242,3.52636622,109060.0,109050.0,0.00550608]
[1756573802462,3.53281387,109060.0,109050.0,0.00550608]
[1756573802677,3.68645387,109060.0,109050.0,0.00550608]
[1756573802919,3.68644479,109060.0,109050.0,0.00550608]
[1756573803139,3.53280479,109060.0,109050.0,0.00550608]
[1756573803359,3.68644479,109060.0,109050.0,0.00550608]
[1756573805933,3.68644424,109060.0,109050.0,0.00550608]
[1756573806619,3.72808596,109060.0,109050.0,0.00550608]
[1756573806823,3.57444596,109060.0,109050.0,0.00550608]
[1756573807250,3.72808596,109060.0,109050.0,0.00550608]
[1756573807463,4.07203471,109060.0,109050.0,0.00550608]
[1756573810762,3.38397963,109060.0,109050.0,0.00550608]
[1756573811143,4.07203471,109060.0,109050.0,0.00550608]
[1756573812945,4.07205198,109060.0,109050.0,0.00550608]
[1756573813142,4.07328198,109060.0,109050.0,0.00550608]
[1756573813785,4.0732852,109060.0,109050.0,0.00550608]
[1756573814017,4.0720552,109060.0,109050.0,0.00550608]
[1756573815435,3.9184152,109060.0,109050.0,0.00550608]
[1756573815615,3.53274594,109060.0,109050.0,0.00550608]
[1756573816467,4.03041348,109060.0,109050.0,0.00550608]
[1756573817362,3.53274594,109060.0,109050.0,0.00550608]
[1756573817579,3.51839132,109060.0,109050.0,0.00550608]
[1756573817792,3.49858417,109060.0,109050.0,0.00550608]
[1756573821938,3.49858417,109060.0,109050.0,0.18890818]
[1756573822160,0.57462863,109060.0,109050.0,0.18890818]
[1756573823029,0.91865617,109060.0,109050.0,0.18890818]
[1756573823464,0.91864475,109060.0,109050.0,0.18890818]
[1756573823701,0.57461721,109060.0,109050.0,0.18890818]
[1756573823904,0.91864475,109060.0,109050.0,0.18890818]
[1756573824181,0.92808087,109060.0,109050.0,0.18890818]
[1756573824404,0.92807899,109060.0,109050.0,0.18890818]
[1756573825809,0.58405145,109060.0,109050.0,0.18890818]
[1756573826043,0.92807899,109060.0,109050.0,0.18890818]
[1756573826855,0.92162901,109060.0,109050.0,0.18890818]
[1756573827068,0.90443095,109060.0,109050.0,0.18890818]
[1756573827718,0.92807296,109060.0,109050.0,0.15910608]
[1756573827921,0.92807296,109060.0,109050.0,0.1613986]
[1756573828354,0.91087877,109060.0,109050.0,0.1613986]
[1756573828556,0.92807312,109060.0,109050.0,0.1613986]
[1756573829093,0.92807312,109060.0,109050.0,0.0077986]
[1756573829308,0.92807312,109060.0,109050.0,0.1613986]
[1756573831593,0.918637,109060.0,109050.0,0.1613986]
[1756573832625,1.26266454,109060.0,109050.0,0.00550608]
[1756573832827,1.26266454,109060.0,109050.0,0.15910608]
[1756573833795,1.26266454,109060.0,109050.0,0.1613986]
[1756573834402,0.918637,109060.0,109050.0,0.1613986]
[1756573834770,0.58395435,109060.0,109050.0,0.15910608]
[1756573835063,0.92798189,109060.0,109050.0,0.15910608]
[1756573835507,0.91078758,109060.0,109050.0,0.15910608]
[1756573835715,0.92798213,109060.0,109050.0,0.15910608]
[1756573836873,0.92798213,109060.0,109050.0,0.1613986]
[1756573839614,0.92798213,109060.0,109050.0,0.35753261]
[1756573839810,0.92798213,109060.0,109050.0,0.34250818]
[1756573840020,0.9215342,109060.0,109050.0,0.34250818]
[1756573843465,0.57750666,109060.0,109050.0,0.34250818]
[1756573843712,0.9215342,109060.0,109050.0,0.34250818]
[1756573844634,0.92798582,109060.0,109050.0,0.15910608]
[1756573844840,0.92798582,109060.0,109050.0,0.34250818]
[1756573845065,0.9215342,109060.0,109050.0,0.34250818]
[1756573845464,0.92798713,109060.0,109050.0,0.34250818]
[1756573846251,0.92799996,109060.0,109050.0,0.34250818]
[1756573846910,0.92799996,109060.0,109050.0,0.15910608]
[1756573847120,0.92800064,109060.0,109050.0,0.15910608]
[1756573847801,0.58800064,109060.0,109050.0,0.15910608]
[1756573848481,0.58800064,109060.0,109050.0,0.34250818]
[1756573848911,0.58800064,109060.0,109050.0,0.15910608]
[1756573849339,0.58800064,109060.0,109050.0,0.34250818]
[1756573849838,0.24397406,109060.0,109050.0,0.34250818]
[1756573850086,0.5880016,109060.0,109050.0,0.15910608]
[1756573853968,0.5880016,109060.0,109050.0,0.34250818]
[1756573856969,0.58800649,109060.0,109050.0,0.34250818]
[1756573857623,0.5786616,109060.0,109050.0,0.34250818]
[1756573857838,0.57866161,109060.0,109050.0,0.34250818]
[1756573860279,0.57866161,109060.0,109050.0,0.15910608]
[1756573860502,0.57866167,109060.0,109050.0,0.15910608]
[1756573862410,0.24410343,109060.0,109050.0,0.3448007]
[1756573862614,0.40474568,109060.0,109050.0,0.34250818]
[1756573862845,0.40474588,109060.0,109050.0,0.34250818]
[1756573863038,0.0542635,109060.0,109050.0,0.80045455]
[1756573863386,0.06071847,109060.0,109050.0,0.80045455]
[1756573863804,0.0542635,109060.0,109050.0,0.80045455]
[1756573864863,0.58167633,109060.0,109050.0,0.45638701]
[1756573865261,0.23764879,109060.0,109050.0,0.45638701]
[1756573865463,0.39829104,109060.0,109050.0,0.45638701]
[1756573866469,0.39829342,109060.0,109050.0,0.45638701]
[1756573874749,0.05426588,109060.0,109050.0,0.45638701]
[1756573875561,0.23765117,109060.0,109050.0,0.45638701]
[1756573876547,0.58167871,109060.0,109050.0,0.45638701]
[1756573876756,0.23765117,109060.0,109050.0,0.45638701]
[1756573876966,0.39829371,109060.0,109050.0,0.45638701]
[1756573877391,0.581679,109060.0,109050.0,0.45638701]
[1756573879522,0.39829371,109060.0,109050.0,0.45638701]
[1756573881052,0.05426617,109060.0,109050.0,0.45638701]
[1756573883932,0.05426617,109060.0,109050.0,0.52690701]
[1756573885333,0.04479687,109060.0,109050.0,0.71737455]
[1756573885546,0.05439922,109060.0,109050.0,0.71737455]
[1756573885758,0.05439922,109060.0,109050.0,0.87089455]
[1756573887671,0.05439749,109060.0,109050.0,0.87089455]
[1756573889587,0.04479514,109060.0,109050.0,0.87089455]
[1756573889813,0.027582,109060.0,109050.0,0.87089455]
[1756573890891,0.027582,109060.0,109050.0,0.87289455]
[1756573891339,0.027582,109060.0,109050.0,0.87489455]
[1756573894654,0.027582,109060.0,109050.0,0.53086701]
[1756573895040,0.027582,109060.0,109050.0,0.87489455]
[1756573897163,0.027582,109060.0,109050.0,0.72137455]
[1756573897392,0.027582,109060.0,109050.0,0.87489455]
[1756573916656,0.027582,109060.0,109050.0,0.53086701]
[1756573925253,0.027582,109060.0,109050.0,0.53082701]
[1756573925510,0.37160954,109060.0,109050.0,0.53082701]
[1756573933016,0.027582,109060.0,109050.0,0.53082701]
[1756573933143,0.37160954,109060.0,109050.0,0.53082701]
[1756573934356,0.027582,109060.0,109050.0,0.53082701]
[1756573951167,0.19669025,109070.0,109060.0,0.20432411]
[1756573951383,0.24271353,109070.0,109060.0,0.37099412]
[1756573953038,0.24271353,109070.0,109060.0,0.37199412]
[1756573953241,0.24271353,109070.0,109060.0,0.37299412]
[1756573953516,0.24271353,109070.0,109060.0,0.37496412]
[1756573955970,0.0541221,109070.0,109060.0,0.37496412]
[1756573956182,0.39814964,109070.0,109060.0,0.37496412]
[1756573957586,0.04479328,109070.0,109060.0,0.37496412]
[1756573957888,0.01722228,109070.0,109060.0,0.71899166]
[1756573958146,0.34402754,109080.0,109070.0,0.20430729]
[1756573958302,0.38881093,109080.0,109070.0,0.4558273]
[1756573959491,0.39821175,109080.0,109070.0,0.4558273]
[1756573960259,0.38881093,109080.0,109070.0,0.4558273]
[1756573960858,0.38881093,109080.0,109070.0,0.4578273]
[1756573961213,0.37159654,109080.0,109070.0,0.4578273]
[1756573961420,0.37159654,109080.0,109070.0,0.4598273]
[1756573963042,0.38105748,109080.0,109070.0,0.4598273]
[1756573964047,0.37159654,109080.0,109070.0,0.4598273]
[1756573964233,0.027569,109080.0,109070.0,0.50018867]
[1756573964471,0.34402754,109090.0,109080.0,0.20429048]
[1756573964682,0.39002073,109090.0,109080.0,0.30044049]
[1756573966011,0.39002073,109090.0,109080.0,0.30144049]
[1756573966411,0.39002073,109090.0,109080.0,0.30044049]
[1756573966620,0.39002073,109090.0,109080.0,0.30244049]
[1756573967251,0.38205069,109090.0,109080.0,0.30244049]
[1756573967456,0.38205069,109090.0,109080.0,0.30444049]
[1756573968221,0.38205069,109090.0,109080.0,0.30641049]
[1756573968847,0.38082069,109090.0,109080.0,0.30641049]
[1756573969254,0.38205069,109090.0,109080.0,0.30641049]
[1756573975933,0.03679315,109090.0,109080.0,0.30641049]
[1756573976113,0.38082069,109090.0,109080.0,0.37693049]
[1756573978307,0.03679315,109090.0,109080.0,0.37693049]
[1756573978449,0.38082069,109090.0,109080.0,0.37693049]
[1756573981150,0.56538555,109090.0,109080.0,0.34496883]
[1756573981371,0.56538555,109090.0,109080.0,0.52832049]
[1756573982163,0.22135801,109090.0,109080.0,0.52832049]
[1756573982335,0.56538555,109090.0,109080.0,0.52832049]
[1756573983164,0.58257236,109090.0,109080.0,0.52832049]
[1756573983392,0.58257236,109090.0,109080.0,0.19160883]
[1756573983600,0.58257236,109090.0,109080.0,0.34179883]
[1756573983796,0.58257236,109090.0,109080.0,0.18843883]
[1756573984004,0.58257236,109090.0,109080.0,0.34179883]
[1756573984234,0.58257236,109090.0,109080.0,0.52515049]
[1756573984398,0.58257236,109090.0,109080.0,0.52825049]
[1756573985959,0.58257236,109090.0,109080.0,0.19153883]
[1756573986161,0.58257236,109090.0,109080.0,0.34489883]
[1756573986367,0.58257236,109090.0,109080.0,0.52825049]
[1756573987389,0.23854482,109090.0,109080.0,0.52825049]
[1756573987592,0.58257236,109090.0,109080.0,0.52825049]
[1756573988550,0.58259152,109090.0,109080.0,0.52825049]
[1756573990172,0.58259152,109090.0,109080.0,0.53024049]
[1756573992213,0.58259464,109090.0,109080.0,0.53024049]
[1756573998965,0.58136464,109090.0,109080.0,0.53024049]
[1756574002837,0.58136831,109090.0,109080.0,0.53024049]
[1756574006452,0.58136933,109090.0,109080.0,0.53024049]
[1756574009861,0.58137174,109090.0,109080.0,0.53024049]
[1756574013400,0.58137263,109090.0,109080.0,0.53024049]
[1756574014776,0.58260263,109090.0,109080.0,0.37688049]
[1756574014951,0.58260263,109090.0,109080.0,0.53037049]
[1756574015899,0.23734509,109090.0,109080.0,0.53037049]
[1756574016068,0.58137263,109090.0,109080.0,0.53037049]
[1756574016646,0.58137263,109090.0,109080.0,0.45985049]
[1756574020430,0.23734509,109090.0,109080.0,0.45985049]
[1756574020646,0.58137263,109090.0,109080.0,0.45985049]
[1756574020882,0.23734509,109090.0,109080.0,0.45985049]
[1756574021094,0.58137263,109090.0,109080.0,0.45985049]
[1756574023974,0.58137297,109090.0,109080.0,0.45985049]
[1756574026106,0.58137297,109090.0,109080.0,0.53037049]
[1756574030257,0.23734543,109090.0,109080.0,0.53037049]
[1756574030563,0.58137297,109090.0,109080.0,0.53037049]
[1756574034712,0.23734636,109090.0,109080.0,0.53037049]
[1756574034938,0.5813739,109090.0,109080.0,0.53037049]
[1756574038269,0.58137399,109090.0,109080.0,0.53037049]
[1756574043534,0.39803913,109090.0,109080.0,0.53037049]
[1756574044311,0.39803873,109090.0,109080.0,0.53037049]
[1756574050081,0.38881258,109090.0,109080.0,0.53037049]
[1756574051207,0.38881137,109090.0,109080.0,0.53037049]
[1756574052037,0.04478383,109090.0,109080.0,0.53037049]
[1756574052235,0.04478383,109090.0,109080.0,1.21842557]
[1756574052514,0.02979125,109100.0,109090.0,0.20427368]
[1756574052704,0.38880561,109100.0,109090.0,0.30049369]
[1756574052918,0.38880561,109100.0,109090.0,0.30248369]
[1756574053112,0.71561908,109100.0,109090.0,0.45664369]
[1756574053382,0.71684908,109100.0,109090.0,0.45664369]
[1756574053742,0.71684908,109100.0,109090.0,0.45911977]
[1756574053950,0.91737301,109100.0,109090.0,0.45915977]
[1756574054180,0.90016713,109100.0,109090.0,0.45915977]
[1756574054408,0.94836596,109100.0,109090.0,0.00247608]
[1756574054639,0.94836596,109100.0,109090.0,0.15679608]
[1756574054640,0.95558691,109100.0,109090.0,0.15679608]
[1756574054859,0.9555884,109100.0,109090.0,0.15479608]
[1756574055072,0.9548184,109100.0,109090.0,0.15479608]
[1756574055330,0.9548184,109100.0,109090.0,0.15879608]
[1756574056036,0.9548184,109100.0,109090.0,0.16179608]
[1756574059795,0.9548184,109100.0,109090.0,0.34513094]
[1756574059996,0.9548184,109100.0,109090.0,0.16179608]
[1756574060802,0.9548184,109100.0,109090.0,0.34513094]
[1756574061606,0.9548184,109100.0,109090.0,0.16179608]
[1756574061833,0.94836717,109100.0,109090.0,0.16179608]
[1756574062232,0.94836717,109100.0,109090.0,0.34513094]
[1756574063372,0.94836717,109100.0,109090.0,0.16179608]
[1756574064539,0.94836717,109100.0,109090.0,0.34513094]
[1756574065167,0.94836717,109100.0,109090.0,0.34213094]
[1756574065591,0.94836587,109100.0,109090.0,0.15679608]
[1756574065941,0.94836587,109100.0,109090.0,0.15979608]
[1756574066153,0.94836587,109100.0,109090.0,0.34313094]
[1756574066575,0.94616587,109100.0,109090.0,0.34313094]
[1756574067340,0.94616587,109100.0,109090.0,0.34607094]
[1756574068653,0.94616587,109100.0,109090.0,0.16273608]
[1756574069088,0.94616587,109100.0,109090.0,0.34313094]
[1756574069321,0.94616587,109100.0,109090.0,0.34607094]
[1756574069998,0.94616587,109100.0,109090.0,0.16273608]
[1756574070207,0.94616587,109100.0,109090.0,0.34607094]
[1756574073654,0.94616587,109100.0,109090.0,0.16273608]
[1756574075129,0.94616587,109100.0,109090.0,0.00841608]
[1756574075360,0.95261799,109100.0,109090.0,0.15963608]
[1756574076310,0.95262227,109100.0,109090.0,0.15963608]
[1756574077953,0.95262227,109100.0,109090.0,0.16257608]
[1756574080868,0.95262227,109100.0,109090.0,0.15963608]
[1756574082597,0.95262227,109100.0,109090.0,0.16257608]
[1756574087026,0.95262911,109100.0,109090.0,0.16257608]
[1756574087471,0.95262898,109100.0,109090.0,0.16468608]
[1756574091588,0.95139898,109100.0,109090.0,0.16468608]
[1756574091843,0.2633439,109100.0,109090.0,0.16468608]
[1756574092057,0.95139898,109100.0,109090.0,0.16468608]
[1756574094549,0.2633439,109100.0,109090.0,0.16468608]
[1756574094756,0.95139898,109100.0,109090.0,0.16468608]
[1756574096122,0.95139898,109100.0,109090.0,0.23520608]
[1756574097569,0.93418804,109100.0,109090.0,0.23520608]
[1756574097808,0.95139996,109100.0,109090.0,0.23520608]
[1756574098176,0.95140008,109100.0,109090.0,0.23520608]
[1756574100632,0.95263008,109100.0,109090.0,0.23520608]
[1756574101252,0.95263144,109100.0,109090.0,0.23520608]
[1756574103590,0.95263144,109100.0,109090.0,0.23472608]
[1756574103794,0.95263352,109100.0,109090.0,0.23472608]
[1756574105642,0.95263352,109100.0,109090.0,0.16420608]
[1756574106074,0.95263352,109100.0,109090.0,0.01052608]
[1756574106344,0.95263352,109100.0,109090.0,0.16205608]
[1756574106784,0.26457844,109100.0,109090.0,0.16205608]
[1756574107004,0.95263352,109100.0,109090.0,0.16205608]
[1756574107225,0.94617817,109100.0,109090.0,0.16205608]
[1756574107446,0.95263587,109100.0,109090.0,0.16205608]
[1756574111052,0.95263606,109100.0,109090.0,0.00841608]
[1756574111279,0.95263606,109100.0,109090.0,0.15903608]
[1756574111718,0.95263606,109100.0,109090.0,0.16196608]
[1756574112949,0.95263606,109100.0,109090.0,0.16200608]
[1756574113322,0.95263606,109100.0,109090.0,0.17688799]
[1756574113624,0.95263606,109100.0,109090.0,0.16415608]
[1756574113825,0.26458098,109100.0,109090.0,0.16415608]
[1756574114030,0.95263606,109100.0,109090.0,0.16415608]
[1756574115039,0.95263606,109100.0,109090.0,0.34749094]
[1756574115040,0.60737852,109100.0,109090.0,0.34749094]
[1756574115282,0.95140606,109100.0,109090.0,0.41801094]
[1756574116806,0.26335098,109100.0,109090.0,0.41801094]
[1756574117013,0.95140606,109100.0,109090.0,0.41801094]
[1756574117939,0.95140664,109100.0,109090.0,0.41801094]
[1756574118831,0.6073791,109100.0,109090.0,0.41801094]
[1756574120846,0.6073791,109100.0,109090.0,0.23467608]
[1756574122391,0.26335156,109100.0,109090.0,0.23467608]
[1756574122592,0.6073791,109100.0,109090.0,0.23467608]
[1756574125049,0.60860869,109100.0,109090.0,0.23467608]
[1756574125563,0.60737869,109100.0,109090.0,0.23467608]
[1756574125785,0.60737869,109100.0,109090.0,0.41801094]
[1756574127202,0.60737869,109100.0,109090.0,0.23467608]
[1756574128700,0.60860681,109100.0,109090.0,0.23248608]
[1756574129211,0.60860678,109100.0,109090.0,0.23452608]
[1756574131625,0.60860678,109100.0,109090.0,0.23456608]
[1756574132253,0.26457928,109100.0,109090.0,0.23456608]
[1756574132468,0.60737682,109100.0,109090.0,0.23456608]
[1756574138531,0.60737682,109100.0,109090.0,0.23240608]
[1756574138532,0.60860682,109100.0,109090.0,0.23240608]
[1756574138740,0.60860682,109100.0,109090.0,0.23444608]
[1756574139588,0.60860688,109100.0,109090.0,0.23444608]
[1756574141314,0.26457934,109100.0,109090.0,0.23444608]
[1756574141481,0.60860688,109100.0,109090.0,0.23444608]
[1756574143451,0.60860728,109100.0,109090.0,0.23444608]
[1756574145269,0.60860728,109100.0,109090.0,0.41778094]
[1756574146482,0.59139235,109100.0,109090.0,0.41778094]
[1756574146708,0.60860883,109100.0,109090.0,0.41778094]
[1756574147328,0.60737883,109100.0,109090.0,0.41778094]
[1756574148715,0.60737883,109100.0,109090.0,0.26430094]
[1756574148920,0.60860883,109100.0,109090.0,0.08096608]
[1756574149254,0.95263637,109100.0,109090.0,0.23436608]
[1756574149424,0.60860883,109100.0,109090.0,0.08096608]
[1756574149636,0.60860883,109100.0,109090.0,0.23440608]
[1756574150283,0.60860947,109100.0,109090.0,0.23440608]
[1756574151011,0.60860944,109100.0,109090.0,0.2553449]
[1756574151173,0.60860944,109100.0,109090.0,0.1019049]
[1756574151381,0.60860944,109100.0,109090.0,0.2553849]
[1756574152574,0.60860944,109100.0,109090.0,0.2553449]
[1756574155595,0.60860944,109100.0,109090.0,0.1019049]
[1756574155782,0.2645819,109100.0,109090.0,0.2553049]
[1756574155977,0.60860944,109100.0,109090.0,0.2553049]
[1756574156999,0.60860944,109100.0,109090.0,0.1847849]
[1756574160827,0.26335192,109100.0,109090.0,0.36811976]
[1756574161039,0.60737949,109100.0,109090.0,0.36811976]
[1756574161714,0.23967881,109100.0,109090.0,0.1847849]
[1756574161919,0.26335183,109100.0,109090.0,0.2553049]
[1756574162133,0.60737937,109100.0,109090.0,0.2553049]
[1756574164379,0.60737937,109100.0,109090.0,0.1019049]
[1756574164585,0.60737937,109100.0,109090.0,0.2553049]
[1756574166329,0.60860937,109100.0,109090.0,0.2553049]
[1756574166700,0.60860962,109100.0,109090.0,0.2553049]
[1756574167948,0.60860962,109100.0,109090.0,0.1019049]
[1756574168154,0.95263716,109100.0,109090.0,0.2503349]
[1756574169427,0.95263716,109100.0,109090.0,0.0969349]
[1756574169628,0.95263716,109100.0,109090.0,0.2503349]
[1756574169776,0.95263716,109100.0,109090.0,0.0969349]
[1756574170099,0.95263716,109100.0,109090.0,0.2503349]
[1756574170518,0.95263645,109100.0,109090.0,0.2503349]
[1756574170728,0.95263432,109100.0,109090.0,0.2503349]
[1756574171093,0.95263432,109100.0,109090.0,0.2503749]
[1756574171290,0.95263437,109100.0,109090.0,0.2503749]
[1756574174016,0.98669875,109100.0,109090.0,0.07599608]
[1756574174220,0.98669875,109100.0,109090.0,0.22939608]
[1756574174418,0.29864367,109100.0,109090.0,0.22939608]
[1756574174590,0.95263437,109100.0,109090.0,0.22939608]
[1756574176293,0.26457929,109100.0,109090.0,0.23256608]
[1756574176498,0.95263437,109100.0,109090.0,0.23256608]
[1756574177555,0.26457929,109100.0,109090.0,0.23256608]
[1756574177761,0.95263437,109100.0,109090.0,0.23256608]
[1756574178272,0.26457929,109100.0,109090.0,0.23256608]
[1756574178477,0.95263437,109100.0,109090.0,0.23256608]
[1756574178607,0.95263437,109100.0,109090.0,0.22939608]
[1756574179937,0.95263437,109100.0,109090.0,0.23260608]
[1756574180564,0.95263437,109100.0,109090.0,0.23060608]
[1756574180912,0.95263437,109100.0,109090.0,0.22760608]
[1756574181056,0.25812372,109100.0,109090.0,0.23070608]